bitfinex/quotes_ETHUSD_20240820
["timestamp","ask_amount","ask_price","bid_price","bid_amount"]
[1724126706869,2.2731,2667.6,2667.0,3.74944]
[1724126707069,2.2731,2667.6,2667.2,3.74922]
[1724126708553,2.2731,2667.6,2667.0,3.74944]
[1724126708554,2.2731,2667.6,2667.3,0.25426813]
[1724126708958,2.2731,2667.6,2667.0,3.74942]
[1724126709267,2.2731,2667.6,2667.1,3.7493]
[1724126709411,2.2731,2667.6,2667.1,4.00372849]
[1724126710052,2.2731,2667.6,2667.1,0.25442849]
[1724126710251,2.2731,2667.6,2667.1,4.00380849]
[1724126710634,2.2731,2667.6,2667.1,0.25442849]
[1724126711733,2.2731,2667.6,2667.1,4.00379849]
[1724126712054,2.2731,2667.6,2667.3,3.74902]
[1724126712375,6.02179,2667.6,2667.1,0.25442849]
[1724126712677,3.749,2667.4,2666.9,7.38]
[1724126712821,2.2512,2667.3,2667.2,0.25437422]
[1724126713016,2.2512,2667.3,2666.8,3.74969]
[1724126713220,2.2512,2667.3,2666.9,0.25461479]
[1724126713836,2.2512,2667.3,2666.9,4.00424479]
[1724126714168,2.2512,2667.3,2666.9,8.52924527]
[1724126714972,2.2512,2667.3,2666.9,4.77961527]
[1724126715812,2.2512,2667.3,2666.9,8.52921527]
[1724126716018,2.2512,2667.3,2666.9,4.77961527]
[1724126716278,2.2512,2667.3,2666.9,8.52920527]
[1724126716420,2.2512,2667.3,2666.9,4.77961527]
[1724126717120,2.2512,2667.3,2666.9,4.77960527]
[1724126717421,2.2512,2667.3,2667.0,0.47796053]
[1724126717701,2.2512,2667.3,2667.1,0.25450913]
[1724126719988,2.2512,2667.3,2666.9,4.52506048]
[1724126720196,2.2512,2667.3,2667.0,0.25464693]
[1724126720669,2.2512,2667.3,2667.0,4.00406693]
[1724126720869,2.2512,2667.3,2667.0,1.10755367]
[1724126721699,2.2512,2667.3,2667.0,4.85706367]
[1724126722294,2.2512,2667.3,2667.0,1.10755367]
[1724126722633,2.2512,2667.3,2667.0,0.25464693]
[1724126723187,2.2512,2667.3,2667.1,3.74937]
[1724126723386,2.3317,2667.7,2667.2,0.25449808]
[1724126723620,2.3317,2667.7,2667.2,4.00374808]
[1724126723825,6.08027,2667.7,2667.2,0.25449808]
[1724126723999,6.08027,2667.7,2667.0,3.74939]
[1724126724199,6.08027,2667.7,2667.1,7.56185584]
[1724126725490,2.3317,2667.7,2667.1,11.31116584]
[1724126725834,2.3317,2667.7,2667.2,3.7492]
[1724126725989,2.3317,2667.7,2667.3,0.25440926]
[1724126726190,2.3317,2667.7,2667.2,3.7492]
[1724126726417,2.3317,2667.7,2667.1,3.74931]
[1724126726418,2.3317,2667.7,2667.3,4.00350926]
[1724126726730,2.3317,2667.7,2667.3,4.77874919]
[1724126726886,2.394,2668.0,2667.5,3.74872]
[1724126727327,6.14217,2668.0,2667.6,0.25415148]
[1724126727694,6.14217,2668.0,2667.4,3.74893]
[1724126727894,6.14217,2668.0,2667.7,0.25407133]
[1724126728097,6.14217,2668.0,2667.4,3.74893]
[1724126728437,6.14217,2668.0,2667.4,4.57625299]
[1724126728642,6.14217,2668.0,2667.5,0.25419996]
[1724126729434,3.74826,2667.9,2667.5,0.25419996]
[1724126730411,3.74826,2667.9,2667.3,4.52429993]
[1724126730806,6.09561,2667.8,2667.4,0.25420526]
[1724126731365,2.4582,2667.5,2667.4,0.25420526]
[1724126731718,2.4582,2667.5,2667.1,3.7493]
[1724126731906,9.95584,2667.5,2667.4,0.32474657]
[1724126732128,10.951424,2667.5,2667.4,0.32474657]
[1724126732327,2.3626,2667.3,2666.9,7.38]
[1724126732684,6.11179,2667.3,2666.7,3.74993]
[1724126733253,3.74928,2667.2,2666.7,3.74993]
[1724126734039,3.74928,2667.2,2666.7,7.49981]
[1724126734246,7.49865,2667.2,2666.7,3.476981]
[1724126734473,3.74928,2667.2,2666.7,3.476981]
[1724126734760,3.74928,2667.2,2666.7,7.226851]
[1724126734964,6.11171,2667.3,2666.7,3.476981]
[1724126735760,6.11171,2667.3,2666.6,11.93474946]
[1724126735970,6.11171,2667.3,2666.7,3.74994]
[1724126737454,6.11171,2667.3,2666.8,0.32537606]
[1724126737664,6.11171,2667.3,2666.7,3.74994]
[1724126737950,6.11171,2667.3,2666.9,0.32529321]
[1724126738152,6.11171,2667.3,2666.8,0.32537606]
[1724126738316,6.11171,2667.3,2667.0,0.32521037]
[1724126738519,6.11171,2667.3,2666.9,0.32529321]
[1724126738732,6.11171,2667.3,2667.1,0.32512754]
[1724126739023,6.11171,2667.3,2667.2,0.32504471]
[1724126739528,6.11171,2667.3,2666.7,3.74994]
[1724126739740,6.11171,2667.3,2667.2,0.32504471]
[1724126739938,6.11171,2667.3,2666.7,3.74994]
[1724126740254,3.74926,2667.2,2666.6,14.88008]
[1724126740411,3.74974,2666.9,2666.7,0.32557241]
[1724126740617,2.296,2666.8,2666.7,0.32557241]
[1724126740845,9.79562,2666.8,2666.7,0.32557241]
[1724126742013,9.83312,2666.8,2666.7,0.32557241]
[1724126743223,3.75037,2666.4,2666.3,0.0041843]
[1724126743533,6.24567,2666.4,2666.3,0.33026397]
[1724126743715,6.24567,2666.4,2666.3,0.0041843]
[1724126743922,10.995632,2666.4,2666.3,0.33026397]
[1724126744126,10.995632,2666.4,2666.3,0.0041843]
[1724126744323,10.995632,2666.4,2666.3,0.33028991]
[1724126744570,7.245262,2666.4,2666.3,0.0041843]
[1724126744745,6.24567,2666.4,2666.3,0.33028991]
[1724126744946,2.4953,2666.4,2666.3,0.0041843]
[1724126745449,2.4953,2666.4,2666.3,0.33032738]
[1724126748333,6.24567,2666.4,2666.3,0.33032738]
[1724126748642,7.245254,2666.4,2666.3,0.33032738]
[1724126748874,2.4953,2666.4,2666.3,0.33032738]
[1724126749288,2.4953,2666.4,2666.3,0.32614308]
[1724126749488,6.24567,2666.4,2666.3,0.32614308]
[1724126749801,3.24216922,2667.8,2665.9,11.13098]
[1724126749802,2.4462,2666.5,2665.9,11.13098]
[1724126749998,3.75037,2666.4,2666.3,0.31765311]
[1724126750280,3.75037,2666.4,2665.9,7.38]
[1724126750571,6.19674,2666.3,2665.9,7.38]
[1724126750740,6.19674,2666.3,2666.0,0.31792196]
[1724126750943,3.75079,2666.1,2666.0,0.31792196]
[1724126751175,6.19699,2666.1,2666.0,0.31792196]
[1724126751593,6.19699,2666.1,2665.4,3.75168]
[1724126751768,2.4462,2666.1,2666.0,0.31792196]
[1724126751963,2.4462,2666.1,2665.6,3.75142]
[1724126752164,2.4462,2666.1,2666.0,0.31792196]
[1724126752367,2.4462,2666.1,2665.6,7.50283]
[1724126752566,2.4462,2666.1,2666.0,0.31792196]
[1724126752881,2.4462,2666.1,2666.0,0.3183082]
[1724126753188,2.4462,2666.1,2665.6,7.877952]
[1724126753377,2.4462,2666.1,2666.0,0.3183082]
[1724126753579,2.4462,2666.1,2665.7,3.75135]
[1724126754057,2.4462,2666.1,2665.8,0.31848555]
[1724126754255,2.4462,2666.1,2665.5,3.75151]
[1724126754461,6.19699,2666.1,2665.6,0.31865138]
[1724126754999,6.19699,2666.1,2665.6,4.07011138]
[1724126755293,2.4462,2666.1,2665.6,7.82157138]
[1724126755492,2.4462,2666.1,2665.7,3.75133]
[1724126755891,2.4462,2666.1,2665.8,0.31848555]
[1724126756200,2.4462,2666.1,2665.7,3.75133]
[1724126756492,2.4462,2666.1,2665.8,0.31848555]
[1724126756669,2.4462,2666.1,2665.8,4.06968555]
[1724126756864,2.4782,2666.3,2665.8,4.06968555]
[1724126757990,2.4782,2666.3,2665.9,3.75107]
[1724126758295,2.4782,2666.3,2666.0,0.31831974]
[1724126758599,2.4782,2666.3,2665.8,3.75119]
[1724126758896,2.4782,2666.3,2665.8,4.84124109]
[1724126759099,2.4782,2666.3,2665.9,0.31840264]
[1724126759913,6.22878,2666.3,2665.9,0.31840264]
[1724126760325,6.22878,2666.3,2665.6,3.75148]
[1724126760645,6.16419,2666.1,2666.0,0.31831974]
[1724126760922,2.4134,2666.1,2666.0,0.31829955]
[1724126761290,2.4134,2666.1,2665.6,3.75138]
[1724126761467,2.4134,2666.1,2666.0,0.31829955]
[1724126761673,2.4134,2666.1,2665.6,3.75138]
[1724126761989,2.4134,2666.1,2665.7,4.06989828]
[1724126767219,6.21248,2666.4,2665.8,3.75114]
[1724126767465,9.96294,2666.4,2665.9,0.30782844]
[1724126767600,6.21248,2666.4,2665.9,0.30782844]
[1724126768347,2.3896,2666.0,2665.9,0.30782844]
[1724126768721,2.3896,2666.0,2665.6,3.75149]
[1724126768913,2.3896,2666.0,2665.9,0.30781114]
[1724126769136,2.3896,2666.0,2665.7,7.5027]
[1724126769340,2.3896,2666.0,2665.9,0.30781114]
[1724126769648,3.7506,2666.3,2665.9,0.3078169]
[1724126769851,6.16252,2666.4,2665.9,3.75106]
[1724126770063,6.16252,2666.4,2666.0,0.307734]
[1724126770350,3.75052,2666.3,2666.0,0.307734]
[1724126770649,3.75052,2666.3,2665.7,7.50254]
[1724126770859,3.75052,2666.3,2665.8,0.30789981]
[1724126771053,3.75052,2666.3,2665.7,8.252794]
[1724126771259,3.75052,2666.3,2665.8,0.30789981]
[1724126771586,7.50116,2666.3,2665.7,4.501514]
[1724126771854,7.50116,2666.3,2665.8,0.30788251]
[1724126772069,3.75052,2666.3,2665.7,4.501514]
[1724126772211,3.75052,2666.3,2665.9,0.3077996]
[1724126772413,1.582,2666.2,2665.7,4.501514]
[1724126772760,5.33266,2666.2,2665.8,0.30789116]
[1724126773057,2.4602,2666.1,2665.7,4.501514]
[1724126773207,2.4602,2666.1,2665.8,0.30789404]
[1724126773402,2.4602,2666.1,2665.7,4.501514]
[1724126773606,2.4602,2666.1,2665.8,0.30789404]
[1724126773843,2.4602,2666.1,2665.7,4.501514]
[1724126774134,2.4602,2666.1,2665.8,0.30789404]
[1724126774520,2.4602,2666.1,2665.7,3.75126]
[1724126774716,2.4602,2666.1,2665.9,0.30781114]
[1724126774917,2.4602,2666.1,2665.8,0.30789404]
[1724126774918,1.582,2666.0,2665.8,0.30789404]
[1724126775241,1.582,2666.0,2665.6,0.80529554]
[1724126775242,5.33295,2666.0,2665.6,0.80529554]
[1724126775449,5.33295,2666.0,2665.5,3.75154]
[1724126775762,1.582,2666.0,2665.6,0.80528306]
[1724126776053,1.582,2666.0,2665.5,8.991418]
[1724126776215,1.582,2666.0,2665.6,0.80526339]
[1724126776421,1.582,2666.0,2665.5,8.991418]
[1724126776628,1.582,2666.0,2665.6,1.70443946]
[1724126776830,1.582,2666.0,2665.6,0.8991418]
[1724126777032,1.582,2666.0,2665.6,4.6506118]
[1724126777547,1.582,2666.0,2665.5,5.239858]
[1724126777548,5.33328,2665.8,2665.3,7.38]
[1724126777722,1.582,2665.6,2665.1,16.60011595]
[1724126777915,5.3335,2665.6,2665.2,0.80547931]
[1724126778115,5.3335,2665.6,2665.3,0.80547931]
[1724126778424,5.3335,2665.6,2665.1,16.01206]
[1724126778607,5.3335,2665.6,2665.2,0.80552997]
[1724126778947,5.3335,2665.6,2665.1,18.959877]
[1724126779148,3.75164,2665.5,2665.2,0.8055454]
[1724126779354,3.75164,2665.5,2665.1,12.26]
[1724126780414,2.3493,2665.4,2665.1,12.26]
[1724126781029,6.1011,2665.4,2664.7,17.09492761]
[1724126781347,9.85297,2665.4,2664.8,6.30278846]
[1724126781516,2.3493,2665.4,2665.0,3.75233]
[1724126781925,3.75156,2665.6,2665.0,3.75233]
[1724126782270,2.2603,2665.6,2665.1,3.7521]
[1724126782488,2.2603,2665.6,2665.2,0.30859639]
[1724126783286,2.2603,2665.9,2665.3,3.75182]
[1724126783431,2.2603,2665.9,2665.4,4.13515795]
[1724126783635,2.2603,2665.9,2665.4,4.0601305]
[1724126784723,6.01138,2665.9,2665.4,4.0601305]
[1724126785130,6.01138,2665.9,2665.4,5.008065]
[1724126785131,2.2603,2665.9,2665.4,5.008065]
[1724126785755,6.01139,2665.9,2665.4,5.008065]
[1724126786162,2.2603,2665.9,2665.4,8.759765]
[1724126786633,2.2571,2666.1,2665.6,3.75148]
[1724126787139,3.75093,2666.0,2665.7,0.30814999]
[1724126787345,7.50197,2666.0,2665.4,4.6995945]
[1724126787557,3.75093,2666.0,2665.5,0.30831584]
[1724126787735,3.75116,2665.9,2665.5,0.30831584]
[1724126788070,2.4904,2665.8,2665.6,0.30823291]
[1724126788375,2.4904,2665.8,2665.3,3.7519]
[1724126788376,2.4904,2665.8,2665.4,3.75175]
[1724126788668,2.4904,2665.8,2665.7,0.30814999]
[1724126788970,2.4904,2666.5,2665.5,0.38336974]
[1724126789172,3.75045,2666.4,2665.6,3.75141]
[1724126789379,3.75045,2666.4,2665.8,3.75113]
[1724126789574,3.75045,2666.4,2665.7,5.4532116]
[1724126789741,7.50094,2666.4,2665.9,0.30791781]
[1724126789929,7.50094,2666.4,2665.7,5.14512797]
[1724126790272,3.75054,2666.3,2666.0,0.3078349]
[1724126790477,3.75054,2666.3,2665.7,1.39379797]
[1724126790634,2.4452,2666.1,2665.8,0.82247238]
[1724126790830,2.4452,2666.1,2665.7,1.39379797]
[1724126794142,2.4452,2666.1,2665.6,3.75138]
[1724126795251,2.4452,2666.1,2665.6,7.50278]
[1724126795580,2.4452,2666.1,2665.6,3.75138]
[1724126796587,3.4414365,2667.4,2665.7,3.75]
[1724126796802,12.80210339,2668.7,2665.7,3.75]
[1724126796803,5.88285644,2669.5,2667.5,4.49882]
[1724126797000,5.88285644,2669.5,2666.9,11.1613018]
[1724126797001,5.88285644,2669.5,2669.4,11.23848]
[1724126797308,5.88285644,2669.5,2669.3,3.74624]
[1724126797598,5.88285644,2669.5,2668.9,3.74679]
[1724126797768,0.58828564,2669.4,2669.0,3.0]
[1724126798191,2.307,2669.6,2668.6,3.0]
[1724126798484,0.7,2671.0,2668.4,3.7475]
[1724126798485,3.799,2669.8,2668.4,3.7475]
[1724126798655,2.307,2669.7,2668.4,3.7475]
[1724126798852,2.307,2669.7,2668.5,3.74737]
[1724126799094,2.307,2669.7,2667.7,2.4663]
[1724126799095,2.307,2669.7,2668.6,3.74718]
[1724126799304,0.6106,2669.6,2668.6,3.74718]
[1724126799519,2.307,2669.7,2667.7,2.4663]
[1724126799520,2.307,2669.7,2668.9,3.74679]
[1724126799651,2.307,2670.2,2668.9,3.74682]
[1724126799854,2.307,2670.2,2668.5,3.799]
[1724126799855,3.799,2670.1,2668.6,3.74722]
[1724126800083,3.799,2669.8,2668.4,3.74748]
[1724126800425,3.799,2669.8,2668.7,3.74709]
[1724126800555,0.39287227,2669.7,2668.2,3.87393493]
[1724126800755,3.799,2670.1,2669.0,3.74664]
[1724126800981,3.0,2670.0,2669.0,3.59674]
[1724126801292,3.0,2670.0,2669.1,3.74654]
[1724126801455,3.0,2670.0,2669.4,3.7461]
[1724126801658,2.307,2670.2,2669.7,3.74568]
[1724126801871,2.307,2670.2,2669.8,0.374568]
[1724126802953,2.307,2670.2,2669.4,3.74612]
[1724126803171,2.307,2670.2,2669.2,11.12638]
[1724126803371,2.307,2670.2,2669.2,7.38]
[1724126803568,2.307,2670.2,2668.9,3.7468]
[1724126803754,2.307,2670.2,2668.5,7.38]
[1724126803954,2.307,2670.2,2668.6,4.11292641]
[1724126804175,0.0297227,2669.9,2669.7,3.74569]
[1724126804594,0.0297227,2669.9,2669.4,3.74607]
[1724126804811,0.0297227,2669.9,2669.3,3.74616]
[1724126805008,0.0297227,2669.9,2669.4,3.74613]
[1724126805598,0.0297227,2669.9,2669.5,3.74599]
[1724126807374,0.0297227,2669.9,2669.7,3.74567]
[1724126807569,0.0297227,2669.9,2669.8,3.74559]
[1724126808032,0.0297227,2669.9,2669.8,8.15963245]
[1724126808177,3.2738,2670.8,2670.3,3.74479]
[1724126808371,3.2738,2670.8,2670.1,3.74516]
[1724126808627,3.2738,2670.8,2669.9,3.74544]
[1724126808771,7.01802,2670.8,2669.7,3.74563]
[1724126808971,6.123209,2670.7,2669.5,11.12601]
[1724126809421,3.0,2670.6,2669.5,7.38]
[1724126809584,5.047,2670.3,2669.5,7.38]
[1724126809934,6.13444,2670.2,2669.5,7.38]
[1724126810248,3.0,2670.1,2669.2,3.74642]
[1724126810533,4.418144,2670.1,2669.2,4.121062]
[1724126810682,4.418144,2670.1,2669.3,3.74628]
[1724126811315,3.74562,2669.8,2668.9,7.38]
[1724126811537,5.047,2669.5,2668.5,11.1274]
[1724126811763,8.79361,2669.1,2668.5,7.38]
[1724126812053,7.3322,2668.7,2667.8,7.38]
[1724126812187,7.3322,2668.7,2667.7,23.63854]
[1724126812188,5.047,2668.3,2667.7,3.74854]
[1724126812388,5.047,2668.3,2667.5,7.38]
[1724126812639,5.047,2668.3,2667.8,0.28857]
[1724126812640,2.2852,2668.2,2667.8,0.28857]
[1724126812851,1.108002,2668.1,2667.5,7.38]
[1724126813054,1.108002,2668.1,2667.9,0.28848722]
[1724126813194,4.108002,2668.1,2667.2,3.74921]
[1724126813708,3.0,2668.1,2667.3,0.28898402]
[1724126813913,2.2852,2668.2,2667.4,3.74892]
[1724126814228,2.2852,2668.2,2667.4,4.0378212]
[1724126814807,2.2852,2668.2,2667.5,3.74882]
[1724126815295,6.03307,2668.2,2667.6,0.28873559]
[1724126815511,7.651307,2668.1,2667.0,7.38]
[1724126815855,7.651307,2668.1,2667.1,4.03851967]
[1724126816158,3.74815,2668.0,2667.1,4.03851967]
[1724126816314,7.651297,2668.1,2667.2,3.74922]
[1724126816661,3.0,2668.1,2667.3,0.28898402]
[1724126816803,2.2852,2668.2,2667.5,3.74881]
[1724126816999,2.2852,2668.2,2667.3,0.28898402]
[1724126817207,2.2852,2668.2,2667.6,0.28873559]
[1724126817399,3.74814,2668.0,2667.0,11.12951]
[1724126817631,3.74814,2668.0,2667.7,0.28865279]
[1724126817632,4.351474,2668.0,2667.7,0.28865279]
[1724126817984,4.351474,2668.0,2667.1,4.862291]
[1724126817985,0.603334,2668.0,2667.3,3.7491]
[1724126818108,3.0,2668.1,2667.8,0.28857]
[1724126818300,2.2852,2668.2,2667.4,3.74894]
[1724126818502,6.03306,2668.2,2667.5,0.28881839]
[1724126818762,3.0,2668.1,2667.5,0.28881839]
[1724126818963,3.74838,2667.9,2667.1,4.862321]
[1724126819101,3.0,2668.1,2667.2,4.26771069]
[1724126819305,2.2852,2668.2,2667.4,3.74885]
[1724126819808,2.2852,2668.2,2667.9,3.74825]
[1724126820006,2.4582,2668.7,2668.0,3.74811]
[1724126820319,2.4582,2668.7,2668.2,3.74775]
[1724126820503,2.4582,2668.7,2668.1,3.74797]
[1724126820704,2.4582,2668.7,2668.3,0.28815614]
[1724126821018,6.825986,2668.7,2668.4,0.28807339]
[1724126821212,3.74753,2668.5,2668.4,0.28807339]
[1724126821537,3.74728,2668.6,2667.8,11.12838]
[1724126821742,2.4582,2668.7,2668.0,3.74812]
[1724126822043,5.4582,2668.7,2668.1,0.374812]
[1724126822245,2.4582,2668.7,2668.1,0.28841065]
[1724126823088,2.4582,2668.7,2667.8,11.12837]
[1724126823089,3.74767,2668.4,2667.8,7.38]
[1724126823367,3.74767,2668.4,2668.2,0.28825303]
[1724126823501,3.74767,2668.4,2667.9,0.28850135]
[1724126823840,3.74775,2668.3,2667.9,0.28850135]
[1724126824041,0.749506,2668.4,2667.9,0.28850135]
[1724126824337,3.74799,2668.1,2668.0,0.28841857]
[1724126824538,3.74826,2667.9,2667.3,7.38]
[1724126824944,9.77146,2668.1,2667.3,7.38]
[1724126825148,6.02339,2668.1,2667.3,7.38]
[1724126825445,6.02339,2668.1,2667.4,1.112951]
[1724126825446,9.77149,2668.1,2667.4,1.112951]
[1724126825746,3.74867,2667.7,2667.0,12.26]
[1724126826246,3.7488,2667.6,2667.0,12.26]
[1724126826739,3.74894,2667.5,2667.0,12.26]
[1724126827454,2.3956,2667.4,2667.1,0.28922138]
[1724126827625,7.4985,2667.2,2667.1,0.28922138]
[1724126827823,7.4985,2667.2,2666.1,16.01069]
[1724126827824,3.74998,2666.7,2665.7,3.75132]
[1724126828081,3.75047,2666.4,2665.6,3.75145]
[1724126828930,3.75047,2666.4,2665.5,3.75159]
[1724126828931,3.75046,2666.4,2665.5,3.75159]
[1724126829111,3.75046,2666.4,2665.6,3.75148]
[1724126829317,3.75046,2666.4,2665.5,3.75159]
[1724126829318,3.75046,2666.4,2665.7,3.75135]
[1724126829716,3.75046,2666.4,2665.5,3.75154]
[1724126829916,3.75065,2666.2,2665.6,0.375154]
[1724126830374,3.75065,2666.2,2665.4,3.75176]
[1724126830651,3.7508,2666.1,2665.3,3.75192]
[1724126830826,3.75052,2666.3,2665.4,3.75175]
[1724126831249,3.75066,2666.2,2665.4,3.75175]
[1724126831451,3.75066,2666.2,2665.4,4.126925]
[1724126832124,3.75066,2666.2,2665.4,0.375175]
[1724126832589,8.79737,2666.4,2665.1,3.75216]
[1724126832590,2.3437,2666.1,2665.1,3.75216]
[1724126832721,3.75118,2665.9,2665.1,3.75216]
[1724126833054,3.75118,2665.9,2664.8,3.75262]
[1724126833055,3.75137,2665.7,2664.8,3.75262]
[1724126833230,3.75137,2665.7,2664.9,0.375262]
[1724126833416,3.75162,2665.6,2664.9,0.375262]
[1724126833614,3.75137,2665.7,2664.9,0.375262]
[1724126833847,3.75137,2665.7,2664.5,3.75299]
[1724126834046,3.75153,2665.6,2664.8,3.75262]
[1724126835358,3.75153,2665.6,2664.9,3.75246]
[1724126835688,3.75153,2665.6,2664.8,3.75262]
[1724126835890,1.58660324,2665.5,2664.8,3.75262]
[1724126836104,1.58660324,2665.5,2664.8,4.523168]
[1724126836997,1.58660324,2665.5,2664.9,3.75237]
[1724126837201,1.58660324,2665.5,2665.0,3.75234]
[1724126837697,1.58660324,2665.5,2664.8,8.275688]
[1724126837897,1.58660324,2665.5,2664.8,4.523068]
[1724126838526,0.19504167,2665.5,2664.8,8.275598]
[1724126838820,0.19504167,2665.5,2664.8,4.523058]
[1724126839127,0.58969584,2665.5,2664.8,3.75251]
[1724126839292,4.34140584,2665.5,2664.8,3.75251]
[1724126839631,0.58969584,2665.5,2664.6,11.33285]
[1724126839774,3.75194,2665.3,2664.6,11.33285]
[1724126839974,0.19504167,2665.5,2664.6,11.33285]
[1724126839975,0.19504167,2665.5,2664.7,0.07504962]
[1724126840282,3.19504167,2665.5,2664.9,3.75244]
[1724126840514,3.75124,2665.8,2665.0,3.75233]
[1724126840815,3.0,2665.9,2665.2,3.75192]
[1724126841036,7.50148,2666.2,2665.4,3.75177]
[1724126841212,5.047,2666.4,2665.4,3.75177]
[1724126841213,8.79742,2666.4,2665.4,3.82680067]
[1724126841391,8.79742,2666.4,2665.3,0.750411]
[1724126841392,5.047,2666.8,2665.6,3.75149]
[1724126841573,5.047,2666.8,2665.6,4.126639]
[1724126841574,3.75034,2666.5,2665.6,4.126639]
[1724126842215,3.7506,2666.3,2665.6,4.126639]
[1724126842420,3.75067,2666.2,2665.7,0.2918341]
[1724126842721,2.4004,2666.6,2665.7,4.0431641]
[1724126842722,3.75029,2666.5,2665.7,4.0431641]
[1724126842876,3.75029,2666.5,2665.8,0.40431641]
[1724126843076,7.50063,2666.5,2665.8,0.40431641]
[1724126843292,7.50063,2666.5,2665.9,0.29166827]
[1724126843495,3.75043,2666.4,2665.9,0.29166827]
[1724126843706,3.75052,2666.3,2665.9,0.29166827]
[1724126843878,4.500601,2666.3,2665.9,0.29166827]
[1724126844076,3.75088,2666.1,2665.9,0.29166827]
[1724126844310,3.75088,2666.1,2665.4,3.75175]
[1724126844489,3.75088,2666.1,2666.0,0.29164017]
[1724126844685,4.500651,2666.3,2665.5,3.75163]
[1724126844885,3.75031,2666.5,2666.0,0.29164017]
[1724126845124,3.75031,2666.5,2665.7,3.75127]
[1724126845642,3.75064,2666.3,2665.8,0.29180598]
[1724126845980,3.75064,2666.3,2665.3,7.5037]
[1724126845981,3.75081,2666.1,2665.3,7.5037]
[1724126846181,3.75069,2666.2,2665.9,0.29172307]
[1724126846425,3.75069,2666.2,2665.4,3.75166]
[1724126846585,3.75069,2666.2,2666.0,0.29164017]
[1724126846786,3.75081,2666.1,2665.5,0.75035]
[1724126848022,3.75096,2666.0,2665.3,11.13183]
[1724126848697,3.7511,2665.9,2665.3,7.38]
[1724126849231,3.75125,2665.8,2665.3,7.38]
[1724126849431,2.34273555,2666.0,2665.4,4.48977]
[1724126849636,2.34273555,2666.0,2665.4,0.738]
[1724126849797,3.75122,2665.8,2665.4,0.738]
[1724126849988,3.75115,2665.9,2665.4,0.738]
[1724126850441,3.75129,2665.8,2665.4,0.738]
[1724126850602,3.75146,2665.7,2665.0,23.39233]
[1724126850804,3.75159,2665.6,2665.0,7.38]
[1724126851225,3.75112,2665.9,2665.2,3.75205]
[1724126851395,3.75159,2665.6,2665.0,7.38]
[1724126851595,2.34273555,2666.0,2665.0,7.38]
[1724126851596,3.75166,2665.5,2665.0,7.38]
[1724126852194,3.75192,2665.3,2665.0,7.38]
[1724126852437,3.75192,2665.3,2664.6,3.95282]
[1724126852653,3.75192,2665.3,2664.7,3.0]
[1724126852796,3.75218,2665.2,2664.6,0.2]
[1724126852996,3.75192,2665.3,2664.6,0.2]
[1724126852997,3.75225,2665.1,2664.6,0.2]
[1724126853243,2.3977,2665.5,2664.6,0.2]
[1724126853577,3.75187,2665.4,2664.6,3.95281]
[1724126854075,2.3977,2665.5,2664.6,3.95281]
[1724126854288,6.14942,2665.5,2664.8,3.75261]
[1724126854426,3.75172,2665.5,2664.8,3.75261]
[1724126855085,3.75179,2665.4,2664.7,0.395281]
[1724126855265,3.75179,2665.4,2664.7,4.147961]
[1724126855573,6.75158,2665.6,2664.8,4.5626941]
[1724126855779,3.0,2665.6,2664.8,0.8100741]
[1724126855985,3.75208,2665.2,2664.6,3.95278]
[1724126856532,3.75188,2665.4,2664.6,3.95278]
[1724126857280,3.75188,2665.4,2664.6,4.75793098]
[1724126857478,3.75186,2665.4,2664.7,0.29285976]
[1724126857694,7.50372,2665.4,2664.7,4.04558976]
[1724126857974,7.50426,2665.2,2664.7,0.29285976]
[1724126858205,3.75222,2665.1,2664.7,0.29285976]
[1724126858328,3.75209,2665.2,2664.7,0.29285976]
[1724126858532,2.4783,2665.3,2664.7,0.29285976]
[1724126858785,3.75184,2665.4,2664.7,0.29285976]
[1724126858947,4.127024,2665.4,2664.7,0.29285976]
[1724126859550,3.75228,2665.1,2664.7,0.29285976]
[1724126860148,3.75205,2665.3,2664.7,0.29285976]
[1724126860469,3.7521,2665.2,2664.7,0.29285976]
[1724126860652,7.50427,2665.2,2664.7,0.29285976]
[1724126860875,3.7521,2665.2,2664.7,0.29285976]
[1724126861562,3.75227,2665.1,2664.7,0.29285976]
[1724126861763,3.75238,2665.0,2664.7,0.29285976]
[1724126862517,3.75185,2665.4,2664.7,0.29285976]
[1724126862697,2.305,2665.7,2664.8,3.75252]
[1724126862698,3.75158,2665.6,2664.8,3.75252]
[1724126862883,6.75172,2665.5,2664.8,3.75252]
[1724126863082,6.75172,2665.5,2664.9,0.29276595]
[1724126863396,7.50367,2665.4,2664.9,0.29276595]
[1724126863617,3.75181,2665.4,2664.9,0.29276595]
[1724126864109,3.0,2665.5,2665.0,3.75232]
[1724126864408,3.75157,2665.6,2665.1,0.29262599]
[1724126864615,3.75157,2665.6,2665.1,0.69712059]
[1724126864825,3.75157,2665.6,2665.1,0.29262599]
[1724126865121,3.75182,2665.4,2665.1,0.29262599]
[1724126865329,3.75212,2665.2,2664.6,2.6467]
[1724126865664,3.752,2665.3,2664.6,2.6467]
[1724126865864,3.752,2665.3,2664.6,6.3996]
[1724126866066,3.7515,2665.6,2664.9,3.75246]
[1724126866715,3.7514,2665.7,2665.0,7.50455]
[1724126867024,3.7514,2665.7,2664.8,7.38]
[1724126867167,3.75153,2665.6,2664.9,4.94616977]
[1724126867664,3.75176,2665.5,2664.9,1.19375977]
[1724126868722,3.75174,2665.5,2664.9,1.19375977]
[1724126868864,7.50429,2665.2,2664.8,7.38]
[1724126869226,3.75234,2665.0,2664.8,7.38]
[1724126869517,3.75222,2665.1,2664.6,0.2]
[1724126869661,3.75222,2665.1,2664.6,0.67579822]